[Event "*** SCC Grand Prix: Titled Tuesday Blitz"]
[Site "Chess.com"]
[Date "2020.06.02"]
[Round "3"]
[White "crazy_but_lazy"]
[Black "Matveev_Vladimir"]
[Result "1-0"]
[WhiteElo "2405"]
[BlackElo "2583"]
[TimeControl "180+1"]
[EndTime "10:31:03 PDT"]
[Termination "crazy_but_lazy won by resignation"]

1. d4 {[%clk 0:03:00.9]} 1... Nf6 {[%clk 0:02:59.8]} 2. c4 {[%clk 0:02:59]} 2...
g6 {[%clk 0:03:00]} 3. Nc3 {[%clk 0:02:55.1]} 3... Bg7 {[%clk 0:03:00.3]} 4. h4
{[%clk 0:02:48.5]} 4... c5 {[%clk 0:02:57.1]} 5. d5 {[%clk 0:02:48.4]} 5... d6
{[%clk 0:02:53.2]} 6. e4 {[%clk 0:02:47.4]} 6... b5 {[%clk 0:02:50.3]} 7. cxb5
{[%clk 0:02:46]} 7... a6 {[%clk 0:02:50.7]} 8. a4 {[%clk 0:02:44.6]} 8... O-O
{[%clk 0:02:48.4]} 9. Nf3 {[%clk 0:02:39.7]} 9... e6 {[%clk 0:02:44.6]} 10. Be2
{[%clk 0:02:33.2]} 10... exd5 {[%clk 0:02:39.5]} 11. exd5 {[%clk 0:02:33.2]}
11... Bf5 {[%clk 0:02:27.9]} 12. O-O {[%clk 0:02:29.7]} 12... Ne4 {[%clk
0:02:27.8]} 13. Ra3 {[%clk 0:02:11.8]} 13... Qa5 {[%clk 0:01:44.9]} 14. Nxe4
{[%clk 0:02:05.5]} 14... Bxe4 {[%clk 0:01:45.8]} 15. Bd2 {[%clk 0:02:06.1]}
15... Qd8 {[%clk 0:01:42.3]} 16. Bc3 {[%clk 0:02:05.9]} 16... Bxf3 {[%clk
0:01:35]} 17. Bxf3 {[%clk 0:02:03.3]} 17... Bxc3 {[%clk 0:01:26.6]} 18. Rxc3
{[%clk 0:01:59.6]} 18... axb5 {[%clk 0:01:26.7]} 19. axb5 {[%clk 0:01:59.9]}
19... Qxh4 {[%clk 0:01:27]} 20. Re1 {[%clk 0:01:46.9]} 20... Nd7 {[%clk
0:01:25]} 21. g3 {[%clk 0:01:46.8]} 21... Qf6 {[%clk 0:01:23.8]} 22. Bg2 {[%clk
0:01:05]} 22... Ra2 {[%clk 0:01:17.5]} 23. Qb3 {[%clk 0:00:53.4]} 23... Rfa8
{[%clk 0:01:15.1]} 24. b6 {[%clk 0:00:41.7]} 24... R2a6 {[%clk 0:01:11.3]} 25.
b7 {[%clk 0:00:40.7]} 25... Rb8 {[%clk 0:01:10.9]} 26. Qb5 {[%clk 0:00:41.3]}
26... Ra7 {[%clk 0:01:03.3]} 27. Qxd7 {[%clk 0:00:40.9]} 27... Raxb7 {[%clk
0:01:02.8]} 28. Re8+ {[%clk 0:00:41.4]} 28... Rxe8 {[%clk 0:01:02.6]} 29. Qxe8+
{[%clk 0:00:42.3]} 29... Kg7 {[%clk 0:01:03.1]} 30. Qe2 {[%clk 0:00:40.5]} 30...
Re7 {[%clk 0:01:01.3]} 31. Re3 {[%clk 0:00:39.3]} 31... Rxe3 {[%clk 0:01:00.4]}
32. fxe3 {[%clk 0:00:37.9]} 32... Qe5 {[%clk 0:01:00]} 33. Qf2 {[%clk
0:00:36.3]} 33... h5 {[%clk 0:00:59.6]} 34. Kh2 {[%clk 0:00:14.7]} 34... h4
{[%clk 0:00:58.9]} 35. Qf4 {[%clk 0:00:15.2]} 35... hxg3+ {[%clk 0:00:58.3]} 36.
Kxg3 {[%clk 0:00:15.6]} 36... Qe7 {[%clk 0:00:53.8]} 37. e4 {[%clk 0:00:15.1]}
37... Qc7 {[%clk 0:00:38.3]} 38. Bf3 {[%clk 0:00:15]} 38... Qe7 {[%clk
0:00:37.9]} 39. Kg2 {[%clk 0:00:14.7]} 39... Qc7 {[%clk 0:00:31.6]} 40. Qe3
{[%clk 0:00:14.2]} 40... Qe7 {[%clk 0:00:30.7]} 41. Qc3+ {[%clk 0:00:14.6]}
41... Kg8 {[%clk 0:00:31.2]} 42. b4 {[%clk 0:00:12.7]} 42... Qg5+ {[%clk
0:00:30.2]} 43. Kf2 {[%clk 0:00:12.7]} 43... Qh4+ {[%clk 0:00:30.4]} 44. Kg2
{[%clk 0:00:12.9]} 44... Qg5+ {[%clk 0:00:30.4]} 45. Kf1 {[%clk 0:00:12.8]}
45... cxb4 {[%clk 0:00:27]} 46. Qxb4 {[%clk 0:00:13.7]} 46... Qe3 {[%clk
0:00:25.5]} 47. Kg2 {[%clk 0:00:12.3]} 47... Qg5+ {[%clk 0:00:24.5]} 48. Kf2
{[%clk 0:00:12.7]} 48... Qh4+ {[%clk 0:00:24.8]} 49. Ke2 {[%clk 0:00:11.8]}
49... Qh2+ {[%clk 0:00:24.5]} 50. Ke3 {[%clk 0:00:11.6]} 50... Qg1+ {[%clk
0:00:23.5]} 51. Kd3 {[%clk 0:00:09.4]} 51... Qf1+ {[%clk 0:00:21.8]} 52. Be2
{[%clk 0:00:09]} 52... Qh3+ {[%clk 0:00:21.9]} 53. Kc2 {[%clk 0:00:07.4]} 53...
Qe3 {[%clk 0:00:21.6]} 54. Qd2 {[%clk 0:00:06.6]} 54... Qxe4+ {[%clk 0:00:21.2]}
55. Qd3 {[%clk 0:00:06.7]} 55... Qa4+ {[%clk 0:00:20.5]} 56. Kd2 {[%clk
0:00:07]} 56... Qb4+ {[%clk 0:00:20.4]} 57. Ke3 {[%clk 0:00:07.2]} 57... Qc5+
{[%clk 0:00:19.3]} 58. Kf3 {[%clk 0:00:07.2]} 58... f5 {[%clk 0:00:19.3]} 59.
Kg2 {[%clk 0:00:06.6]} 59... Qc1 {[%clk 0:00:18.5]} 60. Bf3 {[%clk 0:00:05.5]}
60... Qg5+ {[%clk 0:00:17.8]} 61. Kf2 {[%clk 0:00:06]} 61... Qh4+ {[%clk
0:00:17.9]} 62. Kg2 {[%clk 0:00:06.3]} 62... Qf4 {[%clk 0:00:17.5]} 63. Qe2
{[%clk 0:00:05.7]} 63... Qg5+ {[%clk 0:00:14.2]} 64. Kf1 {[%clk 0:00:05.4]}
64... Qc1+ {[%clk 0:00:13.7]} 65. Kf2 {[%clk 0:00:05.6]} 65... Qc5+ {[%clk
0:00:13.7]} 66. Kg2 {[%clk 0:00:06.1]} 66... Kg7 {[%clk 0:00:13.5]} 67. Qe7+
{[%clk 0:00:06.3]} 67... Kh6 {[%clk 0:00:14]} 68. Qh4+ {[%clk 0:00:06.9]} 68...
Kg7 {[%clk 0:00:14.4]} 69. Qe7+ {[%clk 0:00:07.2]} 69... Kh6 {[%clk 0:00:14.6]}
70. Qf8+ {[%clk 0:00:07.8]} 70... Kg5 {[%clk 0:00:14.3]} 71. Qe7+ {[%clk
0:00:07.5]} 71... Kf4 {[%clk 0:00:13.6]} 72. Qh4+ {[%clk 0:00:07.7]} 72... Ke5
{[%clk 0:00:12.3]} 73. Qg5 {[%clk 0:00:06.8]} 73... Qc2+ {[%clk 0:00:11]} 74.
Kg3 {[%clk 0:00:07.4]} 74... Qd3 {[%clk 0:00:08.2]} 75. Qe7+ {[%clk 0:00:05.4]}
75... Kd4 {[%clk 0:00:08.2]} 76. Qf6+ {[%clk 0:00:05.4]} 76... Kc5 {[%clk
0:00:08.1]} 77. Kf4 {[%clk 0:00:04.5]} 77... Qd4+ {[%clk 0:00:07]} 78. Qxd4+
{[%clk 0:00:04.1]} 78... Kxd4 {[%clk 0:00:07.9]} 79. Kg5 {[%clk 0:00:04.7]}
79... Ke3 {[%clk 0:00:08.3]} 80. Bh1 {[%clk 0:00:05.3]} 80... f4 {[%clk
0:00:08.8]} 81. Kxg6 {[%clk 0:00:05.9]} 81... f3 {[%clk 0:00:09.7]} 82. Bxf3
{[%clk 0:00:05.7]} 82... Kxf3 {[%clk 0:00:09.8]} 83. Kf6 {[%clk 0:00:06.6]}
83... Ke4 {[%clk 0:00:08.5]} 84. Ke6 {[%clk 0:00:07.5]} 84... Kd4 {[%clk
0:00:09.4]} 85. Kxd6 {[%clk 0:00:08.4]} 85... Kc4 {[%clk 0:00:10]} 86. Kc6
{[%clk 0:00:08.9]} 1-0

[Event "*** SCC Grand Prix: Titled Tuesday Blitz"]
[Site "Chess.com"]
[Date "2020.06.02"]
[Round "3"]
[White "LamaChampetre"]
[Black "erlesfar"]
[Result "1-0"]
[WhiteElo "2194"]
[BlackElo "2379"]
[TimeControl "180+1"]
[EndTime "10:31:03 PDT"]
[Termination "LamaChampetre won on time"]

1. d4 {[%clk 0:03:00.9]} 1... Nf6 {[%clk 0:02:59.2]} 2. c4 {[%clk 0:03:01]} 2...
c5 {[%clk 0:02:58.4]} 3. d5 {[%clk 0:02:56.5]} 3... b5 {[%clk 0:02:57.9]} 4.
cxb5 {[%clk 0:02:53.4]} 4... a6 {[%clk 0:02:57.7]} 5. bxa6 {[%clk 0:02:53.9]}
5... Bxa6 {[%clk 0:02:55.3]} 6. Nc3 {[%clk 0:02:54.6]} 6... g6 {[%clk
0:02:54.8]} 7. e4 {[%clk 0:02:54.7]} 7... Bxf1 {[%clk 0:02:53.3]} 8. Kxf1 {[%clk
0:02:55.6]} 8... d6 {[%clk 0:02:53.3]} 9. g3 {[%clk 0:02:56]} 9... Bg7 {[%clk
0:02:52.2]} 10. Kg2 {[%clk 0:02:56]} 10... O-O {[%clk 0:02:52]} 11. h3 {[%clk
0:02:54.5]} 11... Nbd7 {[%clk 0:02:50.3]} 12. Nf3 {[%clk 0:02:54.2]} 12... Qa5
{[%clk 0:02:49.1]} 13. Re1 {[%clk 0:02:53.9]} 13... Rfb8 {[%clk 0:02:48.5]} 14.
Re2 {[%clk 0:02:54]} 14... Ne8 {[%clk 0:02:47.5]} 15. Bg5 {[%clk 0:02:47.9]}
15... Kf8 {[%clk 0:02:38.4]} 16. Rc1 {[%clk 0:02:47.1]} 16... Nc7 {[%clk
0:02:36.2]} 17. Rcc2 {[%clk 0:02:45]} 17... Nb5 {[%clk 0:02:33.6]} 18. Nxb5
{[%clk 0:02:44.5]} 18... Rxb5 {[%clk 0:02:33.2]} 19. b3 {[%clk 0:02:44.7]} 19...
Ne5 {[%clk 0:02:23.4]} 20. Nxe5 {[%clk 0:02:33]} 20... Bxe5 {[%clk 0:02:21.2]}
21. Bh6+ {[%clk 0:02:18.1]} 21... Kg8 {[%clk 0:02:19.6]} 22. f4 {[%clk
0:02:08.9]} 22... Bd4 {[%clk 0:02:16.8]} 23. e5 {[%clk 0:02:09.2]} 23... Rbb8
{[%clk 0:02:07]} 24. Qd3 {[%clk 0:01:59.1]} 24... Qa6 {[%clk 0:02:01.6]} 25. Qf3
{[%clk 0:01:55.9]} 25... Rd8 {[%clk 0:01:54.5]} 26. Bg5 {[%clk 0:01:50.5]} 26...
Ra7 {[%clk 0:01:51.6]} 27. Qe4 {[%clk 0:01:02]} 27... Qb7 {[%clk 0:01:25.5]} 28.
exd6 {[%clk 0:00:59.8]} 28... Rxd6 {[%clk 0:01:23.9]} 29. Bxe7 {[%clk
0:00:51.2]} 29... Rxd5 {[%clk 0:01:23]} 30. Kh2 {[%clk 0:00:34.8]} 30... Qd7
{[%clk 0:01:19.9]} 31. Bg5 {[%clk 0:00:28.4]} 31... Kg7 {[%clk 0:01:12.6]} 32.
Bh4 {[%clk 0:00:22.7]} 32... Ra6 {[%clk 0:01:07.6]} 33. g4 {[%clk 0:00:21.5]}
33... Re6 {[%clk 0:01:03.1]} 34. Qf3 {[%clk 0:00:21.7]} 34... f5 {[%clk
0:00:58.3]} 35. gxf5 {[%clk 0:00:20.2]} 35... Rxf5 {[%clk 0:00:56.8]} 36. Rxe6
{[%clk 0:00:20.3]} 36... Qxe6 {[%clk 0:00:55.6]} 37. Re2 {[%clk 0:00:20.9]}
37... Qd5 {[%clk 0:00:54.2]} 38. Re7+ {[%clk 0:00:21]} 38... Kg8 {[%clk
0:00:52.9]} 39. Qxd5+ {[%clk 0:00:19.9]} 39... Rxd5 {[%clk 0:00:52.3]} 40. Re8+
{[%clk 0:00:20.2]} 40... Kg7 {[%clk 0:00:49.7]} 41. Re7+ {[%clk 0:00:20.6]}
41... Kg8 {[%clk 0:00:49.5]} 42. Re8+ {[%clk 0:00:20.1]} 42... Kf7 {[%clk
0:00:49]} 43. Re7+ {[%clk 0:00:20.1]} 43... Kf8 {[%clk 0:00:48.8]} 44. Rxh7
{[%clk 0:00:19.2]} 44... Be3 {[%clk 0:00:47.3]} 45. Bg5 {[%clk 0:00:15]} 45...
Rd2+ {[%clk 0:00:44]} 46. Kg3 {[%clk 0:00:15.6]} 46... Rxa2 {[%clk 0:00:43.3]}
47. Kf3 {[%clk 0:00:16]} 47... Bd4 {[%clk 0:00:42]} 48. Rb7 {[%clk 0:00:15.8]}
48... Rf2+ {[%clk 0:00:39.6]} 49. Ke4 {[%clk 0:00:16.2]} 49... Re2+ {[%clk
0:00:37.9]} 50. Kd5 {[%clk 0:00:15.8]} 50... Re3 {[%clk 0:00:36.7]} 51. h4
{[%clk 0:00:15.7]} 51... Ke8 {[%clk 0:00:34.2]} 52. Rb8+ {[%clk 0:00:15.2]}
52... Kd7 {[%clk 0:00:33.8]} 53. Rb7+ {[%clk 0:00:15.8]} 53... Kc8 {[%clk
0:00:33.2]} 54. Rh7 {[%clk 0:00:15.3]} 54... Rxb3 {[%clk 0:00:28.6]} 55. Kc6
{[%clk 0:00:15.6]} 55... Kb8 {[%clk 0:00:26.6]} 56. Rf7 {[%clk 0:00:13.8]} 56...
c4 {[%clk 0:00:24.4]} 57. Be7 {[%clk 0:00:12.8]} 57... c3 {[%clk 0:00:22.8]} 58.
Bd6+ {[%clk 0:00:13.1]} 58... Ka8 {[%clk 0:00:22.6]} 59. Kd5 {[%clk 0:00:08.3]}
59... Bb6 {[%clk 0:00:18.2]} 60. Rf8+ {[%clk 0:00:05.8]} 60... Kb7 {[%clk
0:00:16.8]} 61. Rf7+ {[%clk 0:00:06.2]} 61... Ka6 {[%clk 0:00:16.5]} 62. Kc4
{[%clk 0:00:06.4]} 62... c2 {[%clk 0:00:15.8]} 63. Kxb3 {[%clk 0:00:05.9]} 63...
c1=Q {[%clk 0:00:15.4]} 64. Rf6 {[%clk 0:00:05.8]} 64... Qb1+ {[%clk 0:00:14.8]}
65. Kc4 {[%clk 0:00:05.6]} 65... Qa2+ {[%clk 0:00:13]} 66. Kd3 {[%clk
0:00:04.7]} 66... Qb3+ {[%clk 0:00:11.9]} 67. Ke4 {[%clk 0:00:05.1]} 67... Qc2+
{[%clk 0:00:11.5]} 68. Kd5 {[%clk 0:00:05.3]} 68... Qd3+ {[%clk 0:00:10.6]} 69.
Ke6 {[%clk 0:00:05.5]} 69... Qe4+ {[%clk 0:00:10.4]} 70. Be5 {[%clk 0:00:05.8]}
70... Kb5 {[%clk 0:00:10.4]} 71. Kf7 {[%clk 0:00:06.2]} 71... Bd4 {[%clk
0:00:10]} 72. Rxg6 {[%clk 0:00:05.4]} 72... Bxe5 {[%clk 0:00:09.8]} 73. fxe5
{[%clk 0:00:06]} 73... Qf5+ {[%clk 0:00:09.9]} 74. Kg7 {[%clk 0:00:04.4]} 74...
Qh5 {[%clk 0:00:09.6]} 75. Rg5 {[%clk 0:00:04]} 75... Qxh4 {[%clk 0:00:09.3]}
76. Kf6 {[%clk 0:00:04.3]} 76... Qe4 {[%clk 0:00:08.4]} 77. e6+ {[%clk
0:00:04.3]} 77... Kc6 {[%clk 0:00:07.8]} 78. e7 {[%clk 0:00:04.5]} 78... Qf4+
{[%clk 0:00:07.7]} 79. Rf5 {[%clk 0:00:05]} 79... Qd6+ {[%clk 0:00:07.2]} 80.
Kf7 {[%clk 0:00:04.7]} 80... Qd7 {[%clk 0:00:07]} 81. Rf6+ {[%clk 0:00:05.3]}
81... Kd5 {[%clk 0:00:06.2]} 82. Kf8 {[%clk 0:00:05.7]} 1-0

[Event "*** SCC Grand Prix: Titled Tuesday Blitz"]
[Site "Chess.com"]
[Date "2020.06.02"]
[Round "3"]
[White "OnatB"]
[Black "gumimis"]
[Result "1/2-1/2"]
[WhiteElo "2328"]
[BlackElo "2142"]
[TimeControl "180+1"]
[EndTime "10:31:10 PDT"]
[Termination "Game drawn - insufficient material"]

1. e4 {[%clk 0:03:00.9]} 1... c6 {[%clk 0:02:59.2]} 2. d4 {[%clk 0:02:58]} 2...
d5 {[%clk 0:02:59]} 3. exd5 {[%clk 0:02:58.9]} 3... cxd5 {[%clk 0:02:59.9]} 4.
Bd3 {[%clk 0:02:59.4]} 4... Nc6 {[%clk 0:02:59.8]} 5. c3 {[%clk 0:03:00.3]} 5...
Nf6 {[%clk 0:02:56.7]} 6. Bf4 {[%clk 0:03:00.5]} 6... g6 {[%clk 0:02:51.7]} 7.
Nf3 {[%clk 0:02:58.9]} 7... Bg4 {[%clk 0:02:50.9]} 8. Nbd2 {[%clk 0:02:56.6]}
8... Bg7 {[%clk 0:02:50.7]} 9. O-O {[%clk 0:02:55.2]} 9... O-O {[%clk
0:02:50.5]} 10. Qb3 {[%clk 0:02:53.9]} 10... Bxf3 {[%clk 0:02:46.6]} 11. Nxf3
{[%clk 0:02:52.9]} 11... Qd7 {[%clk 0:02:42.9]} 12. Rae1 {[%clk 0:02:32.8]}
12... e6 {[%clk 0:02:39.8]} 13. Ne5 {[%clk 0:02:29.2]} 13... Nxe5 {[%clk
0:02:39.7]} 14. Bxe5 {[%clk 0:02:30.1]} 14... a6 {[%clk 0:02:34.6]} 15. a4
{[%clk 0:02:28.1]} 15... Rac8 {[%clk 0:02:13.7]} 16. h3 {[%clk 0:02:27.8]} 16...
Rfe8 {[%clk 0:02:12.3]} 17. Re2 {[%clk 0:02:25]} 17... Qc6 {[%clk 0:02:01.4]}
18. Rfe1 {[%clk 0:02:22.6]} 18... Nd7 {[%clk 0:01:55.2]} 19. Bxg7 {[%clk
0:02:17.1]} 19... Kxg7 {[%clk 0:01:55.2]} 20. h4 {[%clk 0:02:15.9]} 20... h5
{[%clk 0:01:51.6]} 21. Re3 {[%clk 0:02:11.8]} 21... Qc7 {[%clk 0:01:17.6]} 22.
Qd1 {[%clk 0:01:52.1]} 22... Qf4 {[%clk 0:01:11.5]} 23. g3 {[%clk 0:01:51.7]}
23... Qd6 {[%clk 0:01:08.3]} 24. Kg2 {[%clk 0:01:49.1]} 24... Nb6 {[%clk
0:01:05.6]} 25. Qb3 {[%clk 0:01:38.6]} 25... Re7 {[%clk 0:01:01.7]} 26. Re5
{[%clk 0:01:34.1]} 26... Nc4 {[%clk 0:00:55.9]} 27. Bxc4 {[%clk 0:01:33.6]}
27... Rxc4 {[%clk 0:00:52.3]} 28. R1e2 {[%clk 0:01:30.5]} 28... Qc6 {[%clk
0:00:47.4]} 29. a5 {[%clk 0:01:29.9]} 29... Rd7 {[%clk 0:00:32.5]} 30. f3 {[%clk
0:01:23.9]} 30... Qa4 {[%clk 0:00:28.8]} 31. Qb6 {[%clk 0:00:42.3]} 31... Rc6
{[%clk 0:00:28.2]} 32. Qa7 {[%clk 0:00:42.3]} 32... Qxa5 {[%clk 0:00:27.9]} 33.
g4 {[%clk 0:00:35.6]} 33... hxg4 {[%clk 0:00:25.5]} 34. fxg4 {[%clk 0:00:35.5]}
34... Qb6 {[%clk 0:00:24.2]} 35. Qxb6 {[%clk 0:00:30.4]} 35... Rxb6 {[%clk
0:00:24.6]} 36. h5 {[%clk 0:00:30.8]} 36... Rd8 {[%clk 0:00:18.3]} 37. Kg3
{[%clk 0:00:29.6]} 37... Rh8 {[%clk 0:00:17.8]} 38. Kh4 {[%clk 0:00:29.4]} 38...
Rc6 {[%clk 0:00:15]} 39. R5e3 {[%clk 0:00:24.7]} 39... Rcc8 {[%clk 0:00:13.1]}
40. Kg5 {[%clk 0:00:24.7]} 40... f6+ {[%clk 0:00:11.4]} 41. Kh4 {[%clk
0:00:23.3]} 41... gxh5 {[%clk 0:00:11.2]} 42. Rxe6 {[%clk 0:00:21.6]} 42...
hxg4+ {[%clk 0:00:10.9]} 43. Kxg4 {[%clk 0:00:22.5]} 43... Rcf8 {[%clk
0:00:06.7]} 44. Re7+ {[%clk 0:00:20.3]} 44... Rf7 {[%clk 0:00:07.1]} 45. R2e6
{[%clk 0:00:19.5]} 45... f5+ {[%clk 0:00:06.6]} 46. Kg5 {[%clk 0:00:17.9]} 46...
Rh2 {[%clk 0:00:05.5]} 47. Rg6+ {[%clk 0:00:16.5]} 47... Kf8 {[%clk 0:00:05.9]}
48. Rxf7+ {[%clk 0:00:17.1]} 48... Kxf7 {[%clk 0:00:06.2]} 49. Rf6+ {[%clk
0:00:18]} 49... Ke7 {[%clk 0:00:06.4]} 50. Rxf5 {[%clk 0:00:18.9]} 50... Rxb2
{[%clk 0:00:06.5]} 51. Rxd5 {[%clk 0:00:18.8]} 51... Rc2 {[%clk 0:00:06.7]} 52.
Rc5 {[%clk 0:00:18.2]} 52... Kd6 {[%clk 0:00:06.4]} 53. Kf5 {[%clk 0:00:18.2]}
53... b6 {[%clk 0:00:06.8]} 54. Rc8 {[%clk 0:00:17.7]} 54... Kd7 {[%clk
0:00:06.7]} 55. Rc4 {[%clk 0:00:17]} 55... b5 {[%clk 0:00:07.1]} 56. Rc5 {[%clk
0:00:17.2]} 56... Rb2 {[%clk 0:00:07.1]} 57. Ke4 {[%clk 0:00:17.1]} 57... a5
{[%clk 0:00:07]} 58. Kd5 {[%clk 0:00:16.8]} 58... a4 {[%clk 0:00:07.5]} 59. c4
{[%clk 0:00:17.2]} 59... b4 {[%clk 0:00:06.5]} 60. Ra5 {[%clk 0:00:16.4]} 60...
a3 {[%clk 0:00:07]} 61. c5 {[%clk 0:00:14.1]} 61... a2 {[%clk 0:00:07.3]} 62.
c6+ {[%clk 0:00:13.1]} 62... Kc7 {[%clk 0:00:05]} 63. Ra7+ {[%clk 0:00:10.1]}
63... Kc8 {[%clk 0:00:04.7]} 64. Kd6 {[%clk 0:00:09.7]} 64... Kb8 {[%clk
0:00:03.5]} 65. Ra4 {[%clk 0:00:06]} 65... b3 {[%clk 0:00:03.1]} 66. c7+ {[%clk
0:00:05.7]} 66... Kb7 {[%clk 0:00:03.6]} 67. Kd7 {[%clk 0:00:05.5]} 67... Rc2
{[%clk 0:00:03.5]} 68. Rb4+ {[%clk 0:00:04.9]} 68... Ka6 {[%clk 0:00:03.5]} 69.
Ra4+ {[%clk 0:00:03.4]} 69... Kb5 {[%clk 0:00:03.9]} 70. Ra8 {[%clk 0:00:03.3]}
70... Kb4 {[%clk 0:00:03.7]} 71. d5 {[%clk 0:00:02.9]} 71... Kc3 {[%clk
0:00:02.7]} 72. d6 {[%clk 0:00:03.2]} 72... Kb2 {[%clk 0:00:02.7]} 73. c8=Q
{[%clk 0:00:03.5]} 73... Rxc8 {[%clk 0:00:02.8]} 74. Kxc8 {[%clk 0:00:03.7]}
74... a1=Q {[%clk 0:00:03.3]} 75. Rxa1 {[%clk 0:00:03.1]} 75... Kxa1 {[%clk
0:00:04.1]} 76. d7 {[%clk 0:00:04]} 76... b2 {[%clk 0:00:04.6]} 77. d8=Q {[%clk
0:00:04.9]} 77... b1=Q {[%clk 0:00:05.3]} 78. Qa5+ {[%clk 0:00:04.9]} 78... Qa2
{[%clk 0:00:05.5]} 79. Qc3+ {[%clk 0:00:03.5]} 79... Qb2 {[%clk 0:00:06.4]} 80.
Qa5+ {[%clk 0:00:02.7]} 80... Qa2 {[%clk 0:00:06.9]} 81. Qxa2+ {[%clk
0:00:02.6]} 81... Kxa2 {[%clk 0:00:07.3]} 1/2-1/2

[Event "*** SCC Grand Prix: Titled Tuesday Blitz"]
[Site "Chess.com"]
[Date "2020.06.02"]
[Round "3"]
[White "Kobalia"]
[Black "Muracle"]
[Result "1-0"]
[WhiteElo "2774"]
[BlackElo "2593"]
[TimeControl "180+1"]
[EndTime "10:31:18 PDT"]
[Termination "Kobalia won by resignation"]

1. e4 {[%clk 0:03:00.9]} 1... c5 {[%clk 0:02:59.4]} 2. Nf3 {[%clk 0:03:00.7]}
2... Nc6 {[%clk 0:02:59.6]} 3. Bb5 {[%clk 0:03:00.5]} 3... g6 {[%clk 0:02:59.9]}
4. Bxc6 {[%clk 0:03:00.6]} 4... dxc6 {[%clk 0:03:00]} 5. O-O {[%clk 0:03:00.7]}
5... Bg7 {[%clk 0:03:00]} 6. d3 {[%clk 0:03:01.1]} 6... Qc7 {[%clk 0:02:59.9]}
7. a4 {[%clk 0:02:59.7]} 7... e5 {[%clk 0:02:57.5]} 8. a5 {[%clk 0:02:59]} 8...
Nf6 {[%clk 0:02:57.3]} 9. Nbd2 {[%clk 0:02:57.4]} 9... Bg4 {[%clk 0:02:49.9]}
10. h3 {[%clk 0:02:56.6]} 10... Bxf3 {[%clk 0:02:48.4]} 11. Nxf3 {[%clk
0:02:56.7]} 11... O-O-O {[%clk 0:02:44.8]} 12. Be3 {[%clk 0:02:53.4]} 12... Nxe4
{[%clk 0:02:40.8]} 13. Qe1 {[%clk 0:02:45.4]} 13... Nd6 {[%clk 0:02:23.1]} 14.
Bxc5 {[%clk 0:02:44.5]} 14... b6 {[%clk 0:02:14.8]} 15. axb6 {[%clk 0:02:43.4]}
15... axb6 {[%clk 0:02:15.7]} 16. Bxd6 {[%clk 0:02:37.4]} 16... Qxd6 {[%clk
0:02:13.6]} 17. Ra7 {[%clk 0:02:31.5]} 17... Rhe8 {[%clk 0:02:01.6]} 18. Rxf7
{[%clk 0:02:25.8]} 18... Re7 {[%clk 0:02:01.2]} 19. Rxe7 {[%clk 0:02:25.2]}
19... Qxe7 {[%clk 0:02:02.1]} 20. Qe4 {[%clk 0:02:25.3]} 20... Kb7 {[%clk
0:02:01.4]} 21. Re1 {[%clk 0:02:17.4]} 21... Qc5 {[%clk 0:01:59.2]} 22. Nxe5
{[%clk 0:01:59.8]} 22... Qxc2 {[%clk 0:01:46.6]} 23. b4 {[%clk 0:01:27.1]} 23...
Bxe5 {[%clk 0:01:37.9]} 24. Qxe5 {[%clk 0:01:26.4]} 24... Qxd3 {[%clk
0:01:37.8]} 25. h4 {[%clk 0:01:00.9]} 25... Qd4 {[%clk 0:01:30.7]} 26. Qe7+
{[%clk 0:00:48]} 26... Rd7 {[%clk 0:01:28.6]} 27. Qe8 {[%clk 0:00:47.1]} 27...
Rc7 {[%clk 0:00:36.4]} 28. b5 {[%clk 0:00:45.2]} 28... cxb5 {[%clk 0:00:30.3]}
29. Qxb5 {[%clk 0:00:43.9]} 29... Qc4 {[%clk 0:00:22.1]} 30. Qe5 {[%clk
0:00:39.2]} 30... Qc5 {[%clk 0:00:21.3]} 31. Qe4+ {[%clk 0:00:37.7]} 31... Qc6
{[%clk 0:00:21.6]} 32. Qe5 {[%clk 0:00:37.1]} 32... Qc5 {[%clk 0:00:21.7]} 33.
Qf6 {[%clk 0:00:35.3]} 33... b5 {[%clk 0:00:20.4]} 34. Rb1 {[%clk 0:00:32.4]}
34... Qb6 {[%clk 0:00:19.9]} 35. Qf3+ {[%clk 0:00:31.5]} 35... Rc6 {[%clk
0:00:18.1]} 36. Qd5 {[%clk 0:00:30.9]} 36... Ka6 {[%clk 0:00:16.1]} 37. Ra1+
{[%clk 0:00:24.9]} 37... Kb7 {[%clk 0:00:16.2]} 38. Qg8 {[%clk 0:00:23.9]} 38...
Qc7 {[%clk 0:00:15.4]} 39. Qa8+ {[%clk 0:00:21.8]} 39... Kb6 {[%clk 0:00:15.6]}
40. Qa6+ {[%clk 0:00:20.6]} 40... Kc5 {[%clk 0:00:15.8]} 41. Rc1+ {[%clk
0:00:20.2]} 41... Kd5 {[%clk 0:00:13.3]} 42. Qxb5+ {[%clk 0:00:18.5]} 42... Rc5
{[%clk 0:00:13.6]} 43. Rd1+ {[%clk 0:00:15.9]} 43... Ke4 {[%clk 0:00:12.7]} 44.
Qe2+ {[%clk 0:00:14.9]} 44... Kf5 {[%clk 0:00:12.4]} 45. Qf3+ {[%clk 0:00:14.3]}
45... Ke5 {[%clk 0:00:11.8]} 46. Re1+ {[%clk 0:00:13.1]} 46... Kd4 {[%clk
0:00:10.7]} 47. Qe4+ {[%clk 0:00:12.8]} 47... Kc3 {[%clk 0:00:10.6]} 48. Rc1+
{[%clk 0:00:12.7]} 48... Kb3 {[%clk 0:00:11]} 49. Qe3+ {[%clk 0:00:11.8]} 49...
Kb4 {[%clk 0:00:10.8]} 50. Rb1+ {[%clk 0:00:11.9]} 50... Kc4 {[%clk 0:00:10.8]}
51. Qb3+ {[%clk 0:00:11.4]} 51... Kd4 {[%clk 0:00:11.1]} 52. Rd1+ {[%clk
0:00:11.1]} 52... Ke5 {[%clk 0:00:10.5]} 53. Qe3+ {[%clk 0:00:10.8]} 53... Kf6
{[%clk 0:00:10.5]} 54. Qd4+ {[%clk 0:00:10]} 54... Qe5 {[%clk 0:00:09.9]} 55.
Qd8+ {[%clk 0:00:09]} 55... Kf5 {[%clk 0:00:10.1]} 56. Qf8+ {[%clk 0:00:08.1]}
56... Kg4 {[%clk 0:00:08.8]} 57. Qf3+ {[%clk 0:00:07.5]} 57... Kxh4 {[%clk
0:00:09.2]} 58. Qh3+ {[%clk 0:00:05.9]} 58... Kg5 {[%clk 0:00:09.3]} 59. Qxh7
{[%clk 0:00:06]} 59... Rd5 {[%clk 0:00:09]} 60. Rc1 {[%clk 0:00:05.1]} 60... Kf6
{[%clk 0:00:08.5]} 61. Qh8+ {[%clk 0:00:04.6]} 61... Kf5 {[%clk 0:00:08.5]} 62.
Qf8+ {[%clk 0:00:04.5]} 62... Qf6 {[%clk 0:00:08.3]} 63. Qc8+ {[%clk 0:00:04.5]}
63... Kg5 {[%clk 0:00:08.4]} 64. Qh3 {[%clk 0:00:04.2]} 64... Qf5 {[%clk
0:00:08.1]} 65. Qg3+ {[%clk 0:00:03.7]} 65... Kf6 {[%clk 0:00:08.4]} 66. Rc6+
{[%clk 0:00:02.4]} 66... Kg7 {[%clk 0:00:08.7]} 67. Rc7+ {[%clk 0:00:02.5]}
67... Rd7 {[%clk 0:00:07.8]} 68. Qc3+ {[%clk 0:00:02.1]} 68... Kh7 {[%clk
0:00:07.1]} 69. Rxd7+ {[%clk 0:00:01.2]} 69... Qxd7 {[%clk 0:00:08]} 70. Qh3+
{[%clk 0:00:01.7]} 70... Qxh3 {[%clk 0:00:07.9]} 71. gxh3 {[%clk 0:00:02.4]}
71... Kh6 {[%clk 0:00:08.8]} 72. Kg2 {[%clk 0:00:03]} 72... Kh5 {[%clk
0:00:09.7]} 73. Kg3 {[%clk 0:00:03.8]} 73... Kg5 {[%clk 0:00:10.6]} 74. h4+
{[%clk 0:00:03.3]} 74... Kh5 {[%clk 0:00:10.7]} 75. Kh3 {[%clk 0:00:03.2]} 75...
g5 {[%clk 0:00:10.7]} 76. hxg5 {[%clk 0:00:03.5]} 76... Kxg5 {[%clk 0:00:11.6]}
77. Kg3 {[%clk 0:00:04.1]} 77... Kf5 {[%clk 0:00:12]} 78. Kf3 {[%clk 0:00:04.4]}
78... Ke5 {[%clk 0:00:12.1]} 79. Kg4 {[%clk 0:00:04.6]} 79... Kf6 {[%clk
0:00:12.1]} 80. Kf4 {[%clk 0:00:04.8]} 80... Ke6 {[%clk 0:00:08.5]} 81. Kg5
{[%clk 0:00:04.9]} 81... Kf7 {[%clk 0:00:08.6]} 82. Kf5 {[%clk 0:00:04.7]} 82...
Ke7 {[%clk 0:00:08.4]} 83. Kg6 {[%clk 0:00:04.1]} 83... Ke6 {[%clk 0:00:08.7]}
84. f4 {[%clk 0:00:03.8]} 84... Ke7 {[%clk 0:00:09.2]} 85. f5 {[%clk 0:00:03.7]}
85... Kf8 {[%clk 0:00:09.6]} 86. Kf6 {[%clk 0:00:03.9]} 1-0